[Event "12th National Amateur Chess-ch 2025"]
[Site "Bihar"]
[Date "2025.03.27"]
[Round "4.4"]
[White "Utkrisht Tuli"]
[Black "Daksh Goyal"]
[Result "1-0"]
[Annotator "TA"]
[ECO "D13"]
[WhiteElo "2020"]
[BlackElo "2079"]
[PlyCount "127"]
[EventDate "2025.03.25"]
[EventCountry "IND"]
[SourceTitle "playchess.com"]
[Source "ChessBase"]
[SourceQuality "1"]
[TimeControl "5400+30"]

{[%evp 12,127,17,18,1,16,33,30,31,31,31,35,34,21,36,30,31,-1,19,9,27,15,15,15,25,39,42,13,17,21,33,0,12,1,0,0,0,-33,-17,-22,-25,-24,-36,-43,14,3,73,73,84,73,220,214,226,230,232,189,231,262,293,167,180,185,233,159,291,222,232,216,295,233,222,151,216,198,213,204,310,301,285,198,204,0,257,189,252,250,259,117,154,133,137,154,160,157,118,110,126,76,67,65,233,116,127,58,71,0,159,159,189,189,269,263,772,764,760,764,714,700]} 1. d4 {[%emt 0:02:26]} d5 {[%emt 0:02:16]} 2. c4 {[%emt 0:00:09]} c6 {[%emt 0:00:05]} 3. Nf3 {[%emt 0:00:11]} Nf6 {[%emt 0:00:06]} 4. cxd5 {[%emt 0:00:29]} cxd5 {[%emt 0:00:06]} 5. Nc3 {[%emt 0:00:07]} Nc6 {[%emt 0:01:24]} 6. Bf4 {[%emt 0:00:45]} Nh5 {[%emt 0:14:56]} 7. Be5 {[%emt 0:04:49]} f6 {[%emt 0:09:05] D13: Slav Defence: Exchange variation without ...Bf5.} 8. Bg3 {[%emt 0:02:20]} e6 {[%emt 0:10:09]} 9. e3 {[%emt 0:02:07]} g6 {[%emt 0:11:36] White has an edge.} 10. Bd3 {[%emt 0:08:52]} Be7 {[%emt 0:01:02]} 11. Bh4 {[%emt 0:02:01]} O-O {[%emt 0:02:33]} 12. a3 $146 {[%emt 0:05:18]} ({Predecessor:} 12. O-O a6 13. Rc1 Bd7 14. a3 Ng7 15. e4 dxe4 16. Bxe4 Kh8 17. d5 exd5 18. Nxd5 {1-0 Aghamaliyev,C (2481)-Alizada,I Julfa Salvation Day 2016 (3)}) 12... Bd7 {[%emt 0:06:31]} 13. O-O {[%emt 0:05:16]} Rc8 {[%emt 0:01:55]} 14. e4 {[%emt 0:01:18]} Nf4 {[%emt 0:11:05]} 15. exd5 {[%emt 0:08:50]} exd5 {[%emt 0:04:14]} 16. Bb1 {[%emt 0:08:14]} Be6 {[%emt 0:03:53]} 17. Qd2 {[%emt 0:03:57]} Nh5 {[%emt 0:02:06]} 18. Ba2 {[%emt 0:02:33]} g5 {[%emt 0:06:19]} 19. Rfe1 {[%emt 0:02:43]} Bf7 {[%emt 0:00:41]} 20. Bg3 {[%emt 0:01:32]} Re8 {[%emt 0:02:25]} 21. Qd3 {[%emt 0:11:47][%cal Oc3d5]} Qd7 {[%emt 0:04:04]} 22. Rac1 {[%emt 0:05:32]} Kg7 {[%emt 0:02:15]} 23. b4 {[%emt 0:02:44][%cal Bb2b4,Bb4b5][%mdl 32]} Bf8 {[%emt 0:01:34]} 24. Bb3 {[%emt 0:04:54]} a5 {[%emt 0:00:48]} 25. Rxe8 {[%emt 0:01:27]} Rxe8 {[%emt 0:00:17]} 26. b5 $1 {[%emt 0:00:30]} Ne7 {[%emt 0:00:35]} 27. Na4 {[%emt 0:01:05][%cal Bc3a4,Ba4c5,Bc5d7][%mdl 32]} Rc8 {[%emt 0:01:17] Prevents Rc7} ({Black should try} 27... Nxg3 $15 28. hxg3 Qd8) 28. Nc5 $40 {[%emt 0:00:10][%mdl 128] White attacks.} Qf5 {[%emt 0:00:33]} (28... Nxg3 $11 29. Nxd7 Rxc1+ 30. Bd1 Ne4) 29. Qd2 $16 {[%emt 0:00:36] [#]} Nxg3 {[%emt 0:00:19]} 30. hxg3 {[%emt 0:00:37][%cal Ob3c2]} b6 {[%emt 0:00:40]} (30... Ra8 $16) 31. Bc2 $18 {[%emt 0:00:58]} Qg4 {[%emt 0:00:06]} 32. Nh2 {[%emt 0:00:30]} Qh5 {[%emt 0:00:02]} 33. Nd7 {[%emt 0:01:23]} Rd8 {[%emt 0:01:18]} 34. Nxb6 {[%emt 0:00:54]} Be8 {[%emt 0:00:18]} 35. Re1 {[%emt 0:01:13]} (35. Qxa5 $142 Rd6 36. g4) 35... Bxb5 {[%emt 0:00:54]} 36. Qxa5 {[%emt 0:00:08]} Qe8 {[%emt 0:00:25]} (36... Be8 $142 37. Nf1 Qf7) 37. Ng4 {[%emt 0:00:43]} Qc6 {[%emt 0:00:27] Wards off Re6} (37... Rd6 $16 38. a4 Bd7) 38. a4 {[%emt 0:02:13][%cal Oa5a7,Ba3a4,Ba4b5,Bb5b6][%mdl 32]} Qxc2 {[%emt 0:00:38]} 39. axb5 {[%emt 0:01:01]} (39. Qxb5 $6 Qd2 40. Kf1 Qxd4 $16) 39... h5 {[%emt 0:00:30]} 40. Ne3 {[%emt 0:00:11]} Qc7 {[%emt 0:00:07]} 41. Nbc4 {[%emt 0:01:00] Excellent horsemanship.} Qd7 {[%emt 0:00:49] [#]} (41... Qxa5 $16 42. Nxa5 Rd6) 42. Nd2 $1 {[%emt 0:00:25]} Rb8 {[%emt 0:00:13]} 43. Rb1 {[%emt 0:00:08]} Nc8 {[%emt 0:00:35]} (43... Qd6 {keeps fighting.} 44. b6 Qc6) 44. b6 {[%emt 0:00:56]} Ne7 {[%emt 0:00:44]} 45. Qa7 {[%emt 0:00:17]} Rb7 {[%emt 0:00:28]} 46. Qa5 {[%emt 0:00:14]} (46. Qa6 $18 Qc6 47. Qa5) 46... Qc6 $2 {[%emt 0:00:22][%mdl 8192]} (46... Rb8 $1 $11 {and Black stays safe.} 47. Nb3 Nc8) 47. Qb5 {[%emt 0:00:40]} Qd6 {[%emt 0:00:29]} (47... Kg6 $142 48. Qc5 g4 49. Qxc6 Nxc6 50. Nxd5 Nxd4) 48. Nf3 {[%emt 0:01:19]} Kf7 {[%emt 0:00:20]} 49. g4 {[%emt 0:01:27]} (49. Ne1 $18 {Nd3 would now be deadly.} Nc6 50. Qa6 (50. Qxd5+ Qxd5 51. Nxd5 Nxd4 $18) (50. Nxd5 Nxd4 51. Qc4 Qc5 $18)) 49... hxg4 $16 {[%emt 0:00:15]} 50. Nxg4 {[%emt 0:00:35]} Nc8 {[%emt 0:00:43][%cal Rb7b6]} 51. Qd3 {[%emt 0:00:14] White has more active pieces.} Kg7 {[%emt 0:00:54] Inhibits Qh7+.} 52. Ne3 {[%emt 0:00:13]} Qe6 {[%emt 0:00:28]} 53. Rb5 {[%emt 0:02:01]} (53. Nf5+ Kg8 54. Re1 Qxb6 $18) 53... Rxb6 {[%emt 0:00:30]} 54. Nxd5 {[%emt 0:00:33]} (54. Rxd5 $142 Bd6 55. Ra5 (55. Nf5+ Kf8 $16)) 54... Rxb5 {[%emt 0:00:24]} 55. Qxb5 {[%emt 0:00:04]} g4 $2 {[%emt 0:00:39]} (55... Nd6 $14 56. Qc6 Kf7) 56. Nh2 {[%emt 0:00:50]} (56. Nf4 $18 {is the precise move to win.} Qf7 57. Nh4) 56... Nd6 {[%emt 0:00:30]} 57. Qa5 {[%emt 0:00:49]} (57. Qc6 $16) 57... Qe4 $14 {[%emt 0:00:22][%cal Og4g3]} 58. Qc5 {[%emt 0:02:24]} (58. Nf1 $16) 58... Qe1+ $2 {[%emt 0:00:23]} (58... g3 $11 59. Nf1 (59. fxg3 Nf7 $15) 59... Nf7) 59. Nf1 $16 {[%emt 0:00:14]} Ne4 {[%emt 0:00:35]} 60. Qc7+ {[%emt 0:00:03]} Kh8 {[%emt 0:00:39]} (60... Kg8 $142 61. Qf4 Kf7) 61. Qf4 $18 {[%emt 0:00:08][%csl LRf6,LRg4]} Bd6 $2 {[%emt 0:00:25]} (61... Bg7 62. Nde3 (62. Qxg4 Qxf2+ 63. Kh2 Qxd4 $11) 62... Nc3) 62. Qh6+ {[%emt 0:00:05] White is clearly winning.} (62. Qxg4 $2 Qxf2+ 63. Kh1 Qxf1#) 62... Kg8 {[%emt 0:00:07]} 63. Nxf6+ {[%emt 0:00:20]} Nxf6 {[%emt 0:00:34]} 64. Qg6+ {[%emt 0:00:04] Weighted Error Value: White=0.31/Black=0.41  Loses game:     	---       	Black=2      Missed win:     	White=1     	---        Mistake:       	White=6     	Black=11     Inaccurate:     	White=6     	Black=1      OK:         	White=18    	Black=19     Best:        	White=6     	Black=6      Strong:       	White=1     	---} (64. Qxf6 g3 65. Qg5+ (65. Qxd6 $2 {is a self mate.} Qxf2+ 66. Kh1 Qxf1#) 65... Kf7 66. Qf5+ (66. fxg3 Qb1 $18) 66... Ke7 67. fxg3 Kd8 $18) 1-0

[Event "12th National Amateur Chess-ch 2025"]
[Site "Bihar"]
[Date "2025.03.27"]
[Round "4.5"]
[White "Gurung Rohit"]
[Black "Salil, Kumar D."]
[Result "1/2-1/2"]
[Annotator "TA"]
[ECO "B22"]
[WhiteElo "1902"]
[BlackElo "1777"]
[PlyCount "169"]
[EventDate "2025.03.25"]
[EventCountry "IND"]
[SourceTitle "playchess.com"]
[Source "ChessBase"]
[SourceQuality "1"]
[TimeControl "5400+30"]

{[%evp 9,169,17,40,46,43,25,89,89,101,97,116,114,157,134,132,132,131,133,135,119,154,132,903,902,866,591,643,523,577,579,566,557,547,473,458,457,422,337,345,330,317,301,292,264,264,264,264,264,264,264,264,264,264,264,264,226,264,264,264,264,264,264,264,264,264,264,264,264,264,264,264,264,264,264,264,204,204,204,246,246,247,204,246,199,246,246,246,246,247,247,247,247,247,246,246,246,246,246,246,88,86,68,68,68,76,76,73,74,246,246,246,235,220,137,220,74,166,73,246,246,246,246,246,246,246,246,246,246,246,246,246,246,246,246,246,81,246,68,68,68,68,35,38,8,10,0,0,0,8,8,8,8,8,8,8,8,8,8,8,8,8,8]} 1. e4 {[%emt 0:00:02]} c5 {[%emt 0:00:07]} 2. c3 {[%emt 0:00:21]} g6 {[%emt 0:00:46]} 3. d4 {[%emt 0:00:23]} cxd4 {[%emt 0:00:09]} 4. cxd4 {[%emt 0:00:09]} Bg7 {[%emt 0:00:10]} 5. h3 {[%emt 0:00:07]} d6 {[%emt 0:03:31]} 6. Nf3 {[%emt 0:05:42] B22: Sicilian: 2 c3.} Nc6 {[%emt 0:00:17]} 7. Nc3 {[%emt 0:00:39]} Bd7 {[%emt 0:00:43]} (7... e6 $11 {remains equal.}) 8. Be2 $16 {[%emt 0:03:46] White is better.} Rc8 {[%emt 0:05:34]} 9. O-O {[%emt 0:01:53]} h5 $146 {[%emt 0:06:05]} (9... a6 10. Be3 Na5 11. Nd2 e6 12. Nb3 Nc4 13. Bxc4 Rxc4 14. Qd3 Rc8 15. Bf4 Qb6 {1-0 Niering,M (2226)-Salzmann,P (2136) Oberliga Ost-A 1617 2016 (11.4)}) 10. Be3 {[%emt 0:01:25]} a6 {[%emt 0:00:23]} 11. Rc1 {[%emt 0:08:30]} Nf6 {[%emt 0:00:34]} 12. e5 {[%emt 0:08:46]} dxe5 {[%emt 0:01:54]} 13. dxe5 {[%emt 0:01:32]} Nh7 {[%emt 0:00:43]} 14. Qb3 $36 {[%emt 0:03:04][%mdl 2048] Keeping Black busy.} b5 {[%emt 0:09:57][%cal Oe8g8]} 15. Rfd1 {[%emt 0:01:40][%cal Bf1d1,Bd1d7,Bd7b7][%mdl 32] White is more active.} Qa5 $2 {[%emt 0:10:46][%mdl 8192] [#]} (15... Nxe5 $16 16. Qa3 Nf8 17. Qxa6 Rc6 18. Qxb5 Nxf3+ 19. Bxf3 Rxc3 20. Rxd7 Qxd7 21. Qb8+ Qd8 22. Qxd8+ Kxd8 23. bxc3 Nd7) 16. Rxd7 $1 $18 {[%emt 0:13:56][%mdl 512]} O-O {[%emt 0:08:32]} 17. Rcd1 {[%emt 0:15:41]} e6 {[%emt 0:03:39]} 18. Rb7 {[%emt 0:04:00]} Qb4 {[%emt 0:00:18]} 19. Qxb4 {[%emt 0:00:54]} Nxb4 {[%emt 0:00:02]} 20. a3 {[%emt 0:01:45]} Nc6 {[%emt 0:00:38]} 21. Rdd7 {[%emt 0:01:51]} Nxe5 {[%emt 0:00:30]} 22. Nxe5 {[%emt 0:00:47]} Bxe5 {[%emt 0:00:09]} 23. Bh6 {[%emt 0:03:23]} Nf6 {[%emt 0:03:52]} 24. Bxf8 {[%emt 0:01:58]} Nxd7 {[%emt 0:00:01]} 25. Be7 {[%emt 0:02:16]} Nc5 {[%emt 0:00:45]} 26. Bxc5 {[%emt 0:00:10]} Rxc5 {[%emt 0:00:02]} 27. Rb6 {[%emt 0:00:25]} Bxc3 {[%emt 0:02:57]} 28. bxc3 {[%emt 0:00:04]} Rxc3 {[%emt 0:00:48]} 29. Rxa6 {[%emt 0:00:03][%mdl 4096] Endgame KRB-KR} Rb3 {[%emt 0:00:23]} 30. g3 {[%emt 0:01:15]} b4 {[%emt 0:01:07]} 31. a4 {[%emt 0:00:10]} Ra3 {[%emt 0:00:10]} 32. Bc4 {[%emt 0:08:21]} b3 {[%emt 0:05:04] ...b2 would now be deadly.} 33. Rb6 {[%emt 0:00:06]} Rxa4 {[%emt 0:00:40]} 34. Bxb3 {[%emt 0:00:03]} Ra7 {[%emt 0:00:40]} 35. f4 {[%emt 0:00:11]} Kg7 {[%emt 0:00:58]} 36. Kf2 {[%emt 0:00:13]} Rc7 {[%emt 0:00:12]} 37. Bd1 {[%emt 0:00:29]} Ra7 {[%emt 0:00:28]} 38. Be2 {[%emt 0:00:11]} Rc7 {[%emt 0:00:35]} 39. Rd6 {[%emt 0:00:07]} Ra7 {[%emt 0:00:08]} 40. Bd3 {[%emt 0:00:06]} Rc7 {[%emt 0:00:43]} 41. Kf3 {[%emt 0:00:06]} Ra7 {[%emt 0:00:06]} 42. g4 {[%emt 0:01:00]} hxg4+ {[%emt 0:00:21]} 43. hxg4 {[%emt 0:00:02]} Rc7 {[%emt 0:00:17]} 44. Ke3 {[%emt 0:00:26]} Ra7 {[%emt 0:00:08]} 45. Be4 {[%emt 0:01:21]} Rc7 {[%emt 0:01:39]} 46. Bc6 {[%emt 0:00:10]} Ra7 {[%emt 0:00:31]} (46... Kf6) 47. g5 {[%emt 0:01:05]} Rc7 {[%emt 0:02:27]} 48. Kd4 {[%emt 0:02:09]} Ra7 {[%emt 0:03:10]} 49. Rd7 {[%emt 0:00:46]} Ra5 {[%emt 0:01:17]} 50. Rb7 {[%emt 0:01:30]} Kf8 {[%emt 0:00:59]} 51. Bb5 {[%emt 0:00:29]} Ra8 {[%emt 0:01:43]} 52. Ke5 {[%emt 0:00:22]} Kg7 {[%emt 0:00:28]} 53. Bd7 {[%emt 0:01:47]} Ra5+ {[%emt 0:01:39]} 54. Kd6 $2 {[%emt 0:00:34]} (54. Ke4 $18 Kf8 55. Rb8+ Kg7 56. Be8) 54... Rd5+ $16 {[%emt 0:03:44]} 55. Kc6 {[%emt 0:02:33]} Kf8 $1 {[%emt 0:03:19]} 56. Rb8+ {[%emt 0:00:28]} Kg7 {[%emt 0:00:09]} 57. Rb4 {[%emt 0:00:15]} Kf8 {[%emt 0:00:24]} 58. Bc8 {[%emt 0:00:43]} Kg8 $2 {[%emt 0:02:28]} (58... Ra5 $16) 59. Re4 $18 {[%emt 0:01:16][%cal Oe4e6]} Rd1 {[%emt 0:04:06]} 60. Kc7 {[%emt 0:00:46]} Kf8 {[%emt 0:00:25]} 61. Bd7 {[%emt 0:01:30]} Ke7 {[%emt 0:00:21]} (61... Rc1+ $16 62. Bc6 Rd1) 62. Bc6 {[%emt 0:00:23]} (62. Bb5 $18) 62... Rc1 {[%emt 0:00:22] [#]} (62... f6 $16) 63. Ra4 {[%emt 0:00:27]} (63. Kb6 $1 $18) 63... Kf8 $2 {[%emt 0:05:30]} (63... Rc5 $16) 64. Ra8+ {[%emt 0:01:14]} Kg7 {[%emt 0:00:11]} 65. Kd6 {[%emt 0:00:20] Repels Rc5} Rf1 {[%emt 0:01:23]} 66. Ra4 {[%emt 0:00:37]} Kf8 {[%emt 0:01:37]} 67. Rd4 {[%emt 0:00:08]} Ra1 {[%emt 0:01:19]} 68. Ba4 {[%emt 0:00:27]} Re1 {[%emt 0:00:13]} 69. Rb4 {[%emt 0:01:12]} Re3 {[%emt 0:00:43]} 70. Bc2 {[%emt 0:00:25]} Re2 {[%emt 0:00:30]} 71. Rb8+ {[%emt 0:01:40]} Kg7 {[%emt 0:00:14]} 72. Rc8 $2 {[%emt 0:00:32]} (72. Bb1 $18 {and White stays clearly on top.}) 72... Rd2+ $2 {[%emt 0:00:33] [#]} (72... e5 $16 {is a better defense.}) 73. Ke7 $2 {[%emt 0:01:37]} (73. Ke5 $1 $18) 73... Rd4 $14 {[%emt 0:00:15]} 74. Rf8 {[%emt 0:01:05]} Rxf4 {[%emt 0:00:03]} 75. Bd3 {[%emt 0:00:59]} e5 {[%emt 0:05:05][%cal Be6e5,Be5e4][%mdl 32]} 76. Bb5 {[%emt 0:00:58] Be8 is the strong threat.} e4 $1 {[%emt 0:00:52] The position is equal.} 77. Re8 {[%emt 0:00:32]} Rf5 {[%emt 0:00:22][%csl LRb5,LRg5]} 78. Bc6 {[%emt 0:00:23]} Re5+ {[%emt 0:00:57]} 79. Kd6 {[%emt 0:00:13]} Rxe8 {[%emt 0:01:03]} 80. Bxe8 $11 {[%emt 0:00:07] Intending Ke7 and mate. KB-K3P} f6 {[%emt 0:00:18][%cal Bf7f6,Bf6g5,Bg5g4,Bg4g3][%mdl 32]} (80... e3 $5 81. Bb5 $8 f6 $16) 81. Ke6 {[%emt 0:00:52]} fxg5 {[%emt 0:00:10] ( -> ...g4)} 82. Bc6 {[%emt 0:00:01]} (82. Bb5 $5 g4 $8 83. Ke5 $19) 82... g4 {[%emt 0:02:19] ( -> ...e3)} (82... e3 $5 83. Bf3 $8 g4 84. Bxg4 g5 $11 (84... e2 85. Bxe2 g5 86. Bg4 $11)) 83. Bxe4 {[%emt 0:00:05]} Kh6 {[%emt 0:00:06]} 84. Kf6 {[%emt 0:00:17]} g3 {[%emt 0:00:05]} 85. Bf3 {[%emt 0:00:06] White really could win this.   Weighted Error Value: White=0.24 (precise) /Black=0.24 (precise)   Loses game:     	---       	Black=4      Missed win:     	White=2     	---        Mistake:       	White=3     	Black=4      Inaccurate:     	White=3     	Black=1      OK:         	White=35    	Black=19     Best:        	White=1     	Black=8      Strong:       	---       	Black=2      Brilliant:      	White=1     	---} 1/2-1/2

[Event "12th National Amateur Chess-ch 2025"]
[Site "Bihar"]
[Date "2025.03.27"]
[Round "4.6"]
[White "Ayushman Mohanty"]
[Black "Aman Balana"]
[Result "1-0"]
[Annotator "NA RC"]
[ECO "B92"]
[WhiteElo "1827"]
[BlackElo "1827"]
[PlyCount "91"]
[EventDate "2025.03.25"]
[EventCountry "IND"]
[SourceTitle "playchess.com"]
[Source "ChessBase"]
[SourceQuality "1"]
[TimeControl "5400+30"]

1. e4 {[%emt 0:01:00]} c5 2. Nf3 d6 {[%emt 0:00:12]} 3. d4 {[%emt 0:00:00]} cxd4 {[%emt 0:00:06]} 4. Nxd4 {[%emt 0:00:05]} Nf6 {[%emt 0:00:05]} 5. Nc3 {[%emt 0:00:03]} a6 {[%emt 0:00:05]} 6. Be2 {[%emt 0:00:04]} e5 {[%emt 0:00:08]} 7. Nb3 {[%emt 0:00:04]} Be7 8. O-O {[%emt 0:00:22]} O-O {[%emt 0:00:16]} 9. Be3 {[%emt 0:00:14]} Be6 {[%emt 0:00:18]} 10. Qd3 {[%emt 0:00:26]} Nbd7 {[%emt 0:03:47]} 11. Nd5 {[%emt 0:00:27]} Rc8 {[%emt 0:10:07]} 12. Rac1 {[%emt 0:09:27]} b5 {[%emt 0:03:19]} 13. Rfd1 {[%emt 0:01:26]} Bxd5 {[%emt 0:03:37]} 14. exd5 {[%emt 0:00:07]} Nb6 {[%emt 0:01:10]} 15. Bxb6 {[%emt 0:05:12]} Qxb6 {[%emt 0:00:02]} 16. c4 {[%emt 0:00:25]} b4 {[%emt 0:08:24]} 17. c5 {[%emt 0:06:06]} dxc5 {[%emt 0:03:10]} 18. d6 {[%emt 0:00:38]} Bd8 {[%emt 0:09:10]} 19. Qxa6 {[%emt 0:00:26]} Qxa6 {[%emt 0:08:16]} 20. Bxa6 {[%emt 0:00:10]} Ra8 {[%emt 0:00:20]} 21. Nxc5 {[%emt 0:00:54]} Bb6 {[%emt 0:00:58]} 22. Bf1 {[%emt 0:26:15]} Rxa2 {[%emt 0:07:32]} 23. d7 {[%emt 0:00:27]} Raa8 {[%emt 0:09:28]} 24. Nb7 {[%emt 0:00:51]} Rab8 {[%emt 0:07:36]} 25. Ba6 {[%emt 0:00:59]} Ra8 {[%emt 0:05:33]} 26. Bb5 {[%emt 0:03:00]} Rab8 {[%emt 0:08:57]} 27. Rc6 {[%emt 0:12:36]} Bd8 {[%emt 0:00:57]} 28. Ba6 {[%emt 0:02:44]} Be7 {[%emt 0:05:22]} 29. f3 {[%emt 0:03:26]} e4 {[%emt 0:02:01]} 30. fxe4 {[%emt 0:05:32]} Nxe4 {[%emt 0:00:18]} 31. Rdc1 {[%emt 0:00:38]} Nf6 32. Re1 {[%emt 0:03:43]} Bd8 {[%emt 0:02:12]} 33. Rd1 {[%emt 0:00:29]} h5 {[%emt 0:00:36]} 34. Kf1 {[%emt 0:00:58]} Ng4 {[%emt 0:01:01]} 35. Ke2 {[%emt 0:00:28]} Bg5 {[%emt 0:01:04]} 36. h3 {[%emt 0:02:13]} Nh6 {[%emt 0:00:51]} 37. Rd5 {[%emt 0:02:28]} Be7 {[%emt 0:00:46]} 38. Re5 {[%emt 0:00:27]} Bf6 {[%emt 0:00:33]} 39. Rxh5 {[%emt 0:02:05]} Be7 {[%emt 0:01:05]} 40. Re5 {[%emt 0:00:25]} Bf6 {[%emt 0:00:18]} 41. Rec5 {[%emt 0:00:47]} Ra8 {[%emt 0:00:45]} 42. g4 {[%emt 0:00:41]} Be7 {[%emt 0:00:01]} 43. Rd5 {[%emt 0:00:49]} f6 {[%emt 0:00:54]} 44. Bc4 {[%emt 0:03:47]} Kh8 {[%emt 0:00:23]} 45. Re6 {[%emt 0:00:15]} Ng8 {[%emt 0:00:46]} 46. Rxe7 {[%emt 0:00:17]} 1-0

[Event "12th National Amateur Chess-ch 2025"]
[Site "Bihar"]
[Date "2025.03.27"]
[Round "4.7"]
[White "Archisman Patra"]
[Black "Ebenezer, Joseph"]
[Result "1/2-1/2"]
[Annotator "TA"]
[ECO "C05"]
[WhiteElo "1791"]
[BlackElo "1961"]
[PlyCount "85"]
[EventDate "2025.03.25"]
[EventCountry "IND"]
[SourceTitle "playchess.com"]
[Source "ChessBase"]
[SourceQuality "1"]
[TimeControl "5400+30"]

{[%evp 15,85,0,45,12,8,6,47,50,54,61,64,21,63,13,104,47,93,65,106,110,103,104,96,89,101,84,99,97,97,102,102,98,120,84,101,29,29,0,0,0,60,0,0,0,0,-87,-86,-123,-115,-295,-272,-434,-293,-241,0,0,0,0,0,0,0,0,0,0,0,0,0,0,0,0,0,0]} 1. e4 {[%emt 0:01:07]} e6 {[%emt 0:00:12]} 2. d4 {[%emt 0:00:58]} d5 {[%emt 0:00:22]} 3. Nd2 {[%emt 0:00:09]} Nf6 {[%emt 0:00:09]} 4. e5 {[%emt 0:00:05]} Nfd7 {[%emt 0:00:23]} 5. c3 {[%emt 0:00:32]} c5 {[%emt 0:00:13]} 6. f4 {[%emt 0:00:07]} Nc6 {[%emt 0:00:19]} 7. Ndf3 {[%emt 0:00:03]} Qb6 {[%emt 0:02:18]} 8. a3 {[%emt 0:00:15]} a5 {[%emt 0:04:16]} 9. b3 {[%emt 0:00:53] C05: French Tarrasch: 3...Nf6 4 e5 Nfd7, 5 f4 and 5 Bd3 sidelines.} Be7 {[%emt 0:01:45]} 10. h4 {[%emt 0:00:30]} Ndb8 {[%emt 0:06:46][%cal Bd7b8,Bb8a6,Ba6c7][%mdl 32]} 11. Bd3 {[%emt 0:02:50] White is slightly better.} Bd7 $146 {[%emt 0:00:13][%cal Rc5d4]} (11... cxd4 12. cxd4 Bd7 13. Ne2 Na7 14. Kf2 Bb5 15. Bc2 Nbc6 16. Be3 Bxe2 17. Qxe2 Nb5 {0-1 Longson,S (1966)-Corke,A (2255) Wch U20 Girls 2008 (7)}) 12. Ne2 {[%emt 0:00:46]} Na6 {[%emt 0:00:23]} 13. Be3 {[%emt 0:11:01]} h6 {[%emt 0:02:49]} 14. h5 {[%emt 0:06:24]} (14. Kf2 $14) 14... O-O-O {[%emt 0:00:59]} (14... cxd4 $11 15. Nexd4 (15. cxd4 Bxa3 16. O-O Be7 $11) 15... Nc5) 15. Rh3 {[%emt 0:02:33]} (15. O-O $16) 15... Rdg8 {[%emt 0:02:07]} (15... cxd4 $14 {deserves consideration.} 16. Nexd4 (16. Nfxd4 Nc5 $16) (16. cxd4 Bxa3 17. Kf1 Bb4 $11) 16... Nc5) 16. Rg3 {[%emt 0:01:16]} Nc7 {[%emt 0:02:57]} 17. dxc5 {[%emt 0:03:34]} Bxc5 {[%emt 0:05:32]} 18. Bxc5 {[%emt 0:00:57]} Qxc5 {[%emt 0:00:10]} 19. Qd2 {[%emt 0:06:25]} Qb6 {[%emt 0:05:59]} 20. Ned4 {[%emt 0:05:23]} Nxd4 {[%emt 0:00:35]} 21. Nxd4 {[%emt 0:02:05]} Nb5 {[%emt 0:00:34]} 22. Bxb5 {[%emt 0:02:18]} Bxb5 {[%emt 0:00:07] Black is weak on the dark squares} 23. O-O-O {[%emt 0:00:43] White is more active.} g6 {[%emt 0:07:43]} 24. Rh1 {[%emt 0:09:55]} a4 {[%emt 0:07:40]} 25. b4 {[%emt 0:01:20]} (25. hxg6 $1 $16 {Hoping for g7.} fxg6 26. c4 dxc4 27. bxc4) 25... gxh5 $11 {[%emt 0:02:07]} 26. Rxg8+ {[%emt 0:00:45]} Rxg8 {[%emt 0:00:06]} 27. Rxh5 {[%emt 0:01:35]} Bf1 {[%emt 0:00:37]} ({Black should play} 27... Qa6 $1 $11) 28. g3 {[%emt 0:07:43]} ({White should try} 28. Qd1 $14 Qa6 29. g4 (29. Rxh6 Bxg2 $14)) 28... Rxg3 {[%emt 0:10:40]} 29. Qe1 {[%emt 0:01:00]} Rd3 {[%emt 0:08:29]} 30. Rxh6 {[%emt 0:06:00] [#]} (30. Qxf1 $2 Rxc3+ 31. Nc2 Qe3+ 32. Kd1 Rd3+ $19) (30. Kb1 $11 {remains equal.}) 30... Rxd4 $1 $17 {[%emt 0:01:49]} 31. Rh8+ {[%emt 0:01:31] [#]} Kd7 $1 {[%emt 0:00:25]} 32. cxd4 $2 {[%emt 0:01:25]} (32. Qxf1 $17 Qc6 33. Rh3) 32... Qxd4 {[%emt 0:00:34][%mdl 4096] Endgame KQR-KQB} 33. Qg3 {[%emt 0:10:09]} (33. Rh2 $142) 33... Bd3 {[%emt 0:04:57] ( -> ...Qc3+)} 34. Qh2 {[%emt 0:00:40]} Bf5 $2 {[%emt 0:11:23]} (34... Kc7 $19 {...Qc3+ is the strong threat.} 35. Kd1 Qa1+ 36. Kd2 Bb5 (36... Qxa3 37. Qh4 $16)) 35. Qh4 $1 $11 {[%emt 0:03:00] The position is equal.} Qc3+ {[%emt 0:06:58]} 36. Kd1 {[%emt 0:00:02] Really sharp!} Bc2+ {[%emt 0:00:44]} (36... Qxa3 37. Qd8+ Kc6 38. Qd6+ Kb5 39. Qc5+ Ka6 40. Ra8#) 37. Ke2 {[%emt 0:00:02]} Bd3+ {[%emt 0:00:56]} (37... Qxa3 38. Qd8+ Kc6 39. Qd6+ Kb5 40. Qc5+ Ka6 41. Ra8#) 38. Kf2 {[%emt 0:00:02]} Qd2+ {[%emt 0:01:51]} ({Weaker is} 38... Qxa3 39. Qd8+ Kc6 40. Qc8+ Kb6 41. Qc5+ Ka6 42. Ra8#) 39. Kg1 {[%emt 0:00:45]} Qd1+ {[%emt 0:00:30]} 40. Kh2 {[%emt 0:01:00]} Qe2+ {[%emt 0:00:19]} 41. Kg1 {[%emt 0:00:11]} Qf1+ {[%emt 0:01:51]} 42. Kh2 {[%emt 0:00:02] Threatening mate with Qd8+.} Qe2+ {[%emt 0:00:12]} 43. Kg1 {[%emt 0:00:03] Weighted Error Value: White=0.34/Black=0.30  Loses game:     	White=1     	---        Missed win:     	---       	Black=1      Mistake:       	White=6     	Black=3      Inaccurate:     	White=4     	Black=4      OK:         	White=9     	Black=9      Best:        	White=1     	Black=1      Strong:       	White=1     	Black=2} 1/2-1/2